bitfinex-derivatives/quotes_BTCF0:USTF0_20250218
["timestamp","ask_amount","ask_price","bid_price","bid_amount"]
[1739919595535,0.22284459,95382.0,95380.0,0.001]
[1739919596039,0.22284459,95382.0,95379.0,0.32247684]
[1739919596733,0.22284459,95382.0,95380.0,0.001]
[1739919597334,0.029746,95382.0,95379.0,0.32247684]
[1739919597537,0.2097874,95381.0,95379.0,0.32247684]
[1739919598825,0.2961008,95381.0,95379.0,0.32247684]
[1739919599237,0.2961008,95381.0,95379.0,0.001]
[1739919599534,0.2961008,95381.0,95380.0,0.001]
[1739919599535,0.2960994,95381.0,95380.0,0.001]
[1739919599729,0.2098058,95372.0,95371.0,0.00015734]
[1739919599937,0.2098212,95365.0,95351.0,0.3608]
[1739919600136,0.2088212,95365.0,95351.0,0.3608]
[1739919600337,0.0843618,95374.0,95362.0,0.3608]
[1739919600532,0.2930032,95374.0,95365.0,0.1475]
[1739919600836,0.0832018,95374.0,95365.0,0.3573201]
[1739919601033,0.0832018,95375.0,95367.0,0.2098153]
[1739919601234,0.00015734,95379.0,95375.0,0.2097991]
[1739919601435,0.00015734,95379.0,95378.0,0.3608]
[1739919602238,0.11142925,95379.0,95378.0,0.3608]
[1739919602441,0.11042925,95379.0,95378.0,0.3608]
[1739919602833,0.11042925,95379.0,95378.0,0.5705926]
[1739919603435,0.11042925,95379.0,95378.0,0.5715926]
[1739919606035,0.08444564,95379.0,95378.0,0.5715926]
[1739919606441,0.08444564,95379.0,95365.0,0.1475]
[1739919606632,0.0832018,95375.0,95365.0,0.1475]
[1739919607142,0.2098179,95367.0,95365.0,0.1475]
[1739919607647,0.2098179,95367.0,95365.0,0.1485]
[1739919608434,0.0832018,95375.0,95366.0,0.2098185]
[1739919608636,0.12683168,95376.0,95374.0,0.3608]
[1739919608835,0.08444564,95379.0,95374.0,0.3608]
[1739919609040,0.29423664,95379.0,95374.0,0.3608]
[1739919609236,0.08444564,95379.0,95374.0,0.3608]
[1739919609441,0.08444564,95379.0,95376.0,0.2097963]
[1739919609644,0.08444564,95379.0,95375.0,0.4373]
[1739919609940,0.25195754,95386.0,95375.0,0.4373]
[1739919610140,0.05374724,95392.0,95385.0,0.3608]
[1739919610439,0.1,95400.0,95399.0,0.2097464]
[1739919610647,0.1,95400.0,95399.0,0.5705464]
[1739919611138,0.1366469,95400.0,95399.0,0.5705464]
[1739919612040,0.1,95400.0,95399.0,0.5705464]
[1739919612247,0.74990601,95439.0,95399.0,0.6618]
[1739919612431,0.12683168,95430.0,95423.0,0.209693]
[1739919612631,0.12683168,95430.0,95408.0,0.3608]
[1739919612632,0.12683168,95430.0,95407.0,0.3608]
[1739919612937,0.33653628,95418.0,95417.0,0.00015726]
[1739919613139,0.24616142,95418.0,95417.0,0.00015726]
[1739919614551,0.24616142,95418.0,95417.0,0.00115726]
[1739919615041,0.03645682,95418.0,95417.0,0.00115726]
[1739919615349,0.2096919,95424.0,95417.0,0.00115726]
[1739919615547,0.2094,95423.0,95417.0,0.00115726]
[1739919616951,0.24525365,95423.0,95417.0,0.00115726]
[1739919617345,0.2097032,95419.0,95417.0,0.00115726]
[1739919617538,0.24525365,95423.0,95393.0,0.2097575]
[1739919617539,0.209722,95411.0,95393.0,0.2097575]
[1739919617748,0.12683168,95405.0,95387.0,0.0699]
[1739919617939,0.12683168,95405.0,95396.0,0.209753]
[1739919618150,0.0737,95404.0,95396.0,0.209753]
[1739919618543,0.0737,95404.0,95395.0,0.3618]
[1739919618743,0.1433,95404.0,95396.0,0.209753]
[1739919619651,0.1433,95404.0,95403.0,0.3608]
[1739919620238,0.00015698,95410.0,95403.0,0.3608]
[1739919620644,0.00015698,95410.0,95408.0,0.2097256]
[1739919623754,0.00015698,95410.0,95408.0,0.2107256]
[1739919624647,0.00015698,95410.0,95408.0,0.001]
[1739919624843,0.00015698,95410.0,95408.0,0.2107256]
[1739919628753,0.00015698,95410.0,95408.0,0.001]
[1739919629459,0.20987958,95410.0,95408.0,0.001]
[1739919630048,0.00015698,95410.0,95408.0,0.001]
[1739919630255,0.20987938,95410.0,95408.0,0.001]
[1739919633548,0.20987938,95410.0,95405.0,0.3608]
[1739919633549,0.209731,95406.0,95405.0,0.3608]
[1739919633951,0.00015698,95410.0,95396.0,0.3608]
[1739919634249,0.12683168,95406.0,95396.0,0.3608]
[1739919634448,0.2097474,95399.0,95396.0,0.3608]
[1739919634650,0.2811495,95398.0,95396.0,0.3608]
[1739919635057,0.2801495,95398.0,95396.0,0.3608]
[1739919636463,0.2801495,95398.0,95396.0,0.3618]
[1739919637059,0.0687,95397.0,95396.0,0.3618]
[1739919637761,0.0687,95397.0,95396.0,0.3608]
[1739919638060,0.0687,95397.0,95396.0,0.3618]
[1739919640056,0.0687,95397.0,95396.0,0.3608]
[1739919640267,0.0697,95397.0,95396.0,0.3618]
[1739919642159,0.001,95397.0,95396.0,0.3618]
[1739919643563,0.001,95397.0,95396.0,0.571553]
[1739919644459,0.0380959,95397.0,95396.0,0.571553]
[1739919645860,0.001,95397.0,95396.0,0.571553]
[1739919646856,0.03829783,95397.0,95396.0,0.571553]
[1739919653860,0.03829783,95397.0,95396.0,0.3618]
[1739919654057,0.24804863,95397.0,95396.0,0.001]
[1739919667170,0.24704863,95397.0,95396.0,0.001]
[1739919670064,0.24704863,95397.0,95396.0,0.210753]
[1739919674389,0.03729783,95397.0,95396.0,0.210753]
[1739919674574,0.1885576,95401.0,95396.0,0.210753]
[1739919674975,0.23524272,95401.0,95396.0,0.210753]
[1739919677794,0.1885576,95398.0,95396.0,0.210753]
[1739919677987,0.1384,95397.0,95396.0,0.210753]
[1739919678584,0.2074,95397.0,95396.0,0.210753]
[1739919679085,0.1885576,95398.0,95396.0,0.571553]
[1739919680482,0.1885576,95398.0,95396.0,0.3618]
[1739919680784,0.1374,95397.0,95396.0,0.3618]
[1739919682594,0.1374,95397.0,95396.0,0.3608]
[1739919682790,0.1374,95397.0,95396.0,0.3618]
[1739919687896,0.1374,95397.0,95396.0,0.001]
[1739919688391,0.04736337,95400.0,95396.0,0.001]
[1739919688790,0.2097464,95399.0,95396.0,0.001]
[1739919689694,0.2097464,95399.0,95394.0,0.209757]
[1739919689899,0.2097464,95399.0,95396.0,0.001]
[1739919690288,0.2147464,95399.0,95396.0,0.001]
[1739919690986,0.0607773,95398.0,95396.0,0.001]
[1739919691589,0.068,95397.0,95396.0,0.001]
[1739919691789,0.17216,95397.0,95396.0,0.001]
[1739919691998,0.17216,95397.0,95394.0,0.210757]
[1739919692297,0.068,95397.0,95394.0,0.210757]
[1739919692499,0.068,95397.0,95394.0,0.209757]
[1739919692688,0.068,95397.0,95396.0,0.001]
[1739919693004,0.17204,95397.0,95396.0,0.001]
[1739919693202,0.17704,95397.0,95394.0,0.001]
[1739919693504,0.209753,95396.0,95394.0,0.001]
[1739919693686,0.209753,95396.0,95390.0,0.00015726]
[1739919693894,0.2097557,95395.0,95390.0,0.00015726]
[1739919694595,0.2097581,95394.0,95390.0,0.00015726]
[1739919694993,0.2097581,95394.0,95390.0,0.20992306]
[1739919695387,0.2087581,95394.0,95390.0,0.20992306]
[1739919695986,0.2097631,95392.0,95390.0,0.21092306]
[1739919696183,0.2097631,95392.0,95390.0,0.00115726]
[1739919697081,0.2157631,95392.0,95390.0,0.00115726]
[1739919698990,0.209764,95391.0,95390.0,0.00115726]
[1739919700095,0.209764,95391.0,95390.0,0.00015726]
[1739919700302,0.215764,95391.0,95390.0,0.00115726]
[1739919705505,0.006,95391.0,95390.0,0.00115726]
[1739919709503,0.007,95391.0,95390.0,0.00115726]
[1739919712000,0.1956794,95391.0,95390.0,0.00115726]
[1739919715313,0.06777819,95391.0,95390.0,0.00115726]
[1739919717696,0.06777819,95391.0,95389.0,0.18946171]
[1739919718603,0.007,95391.0,95389.0,0.18946171]
[1739919719002,0.06077819,95394.0,95389.0,0.18946171]
[1739919719206,0.06077819,95394.0,95389.0,0.19046171]
[1739919719207,0.007,95391.0,95389.0,0.19046171]
[1739919719601,0.007,95391.0,95389.0,0.001]
[1739919719803,0.10488,95390.0,95389.0,0.001]
[1739919721902,0.10488,95390.0,95362.0,0.3608]
[1739919722212,0.20983,95361.0,95360.0,0.03312197]
[1739919722509,0.2098494,95353.0,95345.0,0.37367277]
[1739919722712,0.0685,95352.0,95345.0,0.37367277]
[1739919722901,0.2098537,95351.0,95345.0,0.37367277]
[1739919723102,0.0685,95352.0,95345.0,0.37367277]
[1739919723326,0.209852,95351.0,95345.0,0.37367277]
[1739919723620,0.25587403,95351.0,95345.0,0.37367277]
[1739919725110,0.05302203,95351.0,95345.0,0.37367277]
[1739919725316,0.2098555,95350.0,95345.0,0.37367277]
[1739919726816,0.18830316,95346.0,95339.0,0.00015726]
[1739919728717,0.19530316,95346.0,95339.0,0.00015726]
[1739919730927,0.007,95346.0,95339.0,0.00015726]
[1739919734726,0.2893637,95346.0,95339.0,0.00015726]
[1739919735431,0.209876,95341.0,95339.0,0.00015726]
[1739919735619,0.3608,95340.0,95320.0,0.0729]
[1739919735819,0.3608,95338.0,95318.0,0.3608]
[1739919736122,0.2099219,95320.0,95318.0,0.28806218]
[1739919736924,0.2099065,95327.0,95318.0,0.28806218]
[1739919738236,0.007,95320.0,95318.0,0.28806218]
[1739919739040,0.007,95327.0,95326.0,0.209907]
[1739919739335,0.007,95327.0,95326.0,0.570707]
[1739919739537,0.00015735,95329.0,95326.0,0.570707]
[1739919739538,0.00015735,95329.0,95328.0,0.2099026]
[1739919740933,0.00015735,95329.0,95326.0,0.3608]
[1739919741139,0.2099167,95322.0,95310.0,0.3514422]
[1739919741433,0.12689658,95320.0,95310.0,0.3514422]
[1739919742537,0.12689658,95320.0,95310.0,0.1415]
[1739919742739,0.12689658,95320.0,95311.0,0.2099391]
[1739919743037,0.13389658,95320.0,95311.0,0.2099391]
[1739919743239,0.13389658,95320.0,95312.0,0.2099364]
[1739919743434,0.007,95320.0,95310.0,0.1415]
[1739919743635,0.12689658,95330.0,95327.0,0.209904]
[1739919743833,0.0693,95333.0,95328.0,0.072]
[1739919744035,0.0693,95333.0,95329.0,0.0673]
[1739919744433,0.10846573,95333.0,95329.0,0.0673]
[1739919744631,0.03916573,95333.0,95332.0,0.2098938]
[1739919744830,0.18830316,95340.0,95332.0,0.3608]
[1739919745032,0.22727511,95340.0,95339.0,0.2098784]
[1739919746038,0.23427511,95340.0,95339.0,0.2765784]
[1739919747034,0.04597195,95340.0,95339.0,0.2765784]
[1739919747542,0.04597195,95340.0,95339.0,0.2775784]
[1739919748039,0.03897195,95340.0,95339.0,0.2765784]
[1739919748245,0.007,95340.0,95339.0,0.2775784]
[1739919751343,0.04511338,95340.0,95339.0,0.2775784]
[1739919751547,0.007,95340.0,95339.0,0.2775784]
[1739919752440,0.04547827,95340.0,95339.0,0.2775784]
[1739919753445,0.04547827,95340.0,95339.0,0.2108784]
[1739919753742,0.11207827,95340.0,95338.0,0.01678]
[1739919753947,0.0686,95339.0,95332.0,0.3608]
[1739919754149,0.2098916,95333.0,95332.0,0.3608]
[1739919755345,0.2168916,95333.0,95332.0,0.3618]
[1739919758549,0.2168916,95333.0,95332.0,0.001]
[1739919759250,0.26793502,95333.0,95332.0,0.001]
[1739919763254,0.05804342,95333.0,95332.0,0.001]
[1739919763756,0.26793502,95333.0,95332.0,0.001]
[1739919764863,0.26793502,95333.0,95332.0,0.00171]
[1739919765652,0.05804342,95333.0,95332.0,0.00171]
[1739919768246,0.2098938,95332.0,95331.0,0.00839]
[1739919768555,0.2099102,95325.0,95323.0,0.3608]
[1739919768753,0.1368,95324.0,95323.0,0.3608]
[1739919768950,0.24296,95324.0,95323.0,0.3608]
[1739919769756,0.24196,95324.0,95322.0,0.00839]
[1739919769955,0.1358,95324.0,95322.0,0.00839]
[1739919771254,0.007,95332.0,95323.0,0.3608]
[1739919771458,0.007,95332.0,95331.0,0.570696]
[1739919772262,0.05104342,95333.0,95331.0,0.570696]
[1739919772760,0.00015735,95341.0,95339.0,0.2098784]
[1739919772963,0.00015735,95341.0,95340.0,0.4924]
[1739919773959,0.11031754,95345.0,95340.0,0.4924]
[1739919774160,0.12689658,95360.0,95352.0,0.2098498]
[1739919774461,0.12689658,95360.0,95352.0,0.5706498]
[1739919774663,0.22004286,95355.0,95352.0,0.5706498]
[1739919775066,0.04061134,95354.0,95352.0,0.5706498]
[1739919775265,0.00157369,95354.0,95352.0,0.5706498]
[1739919775662,0.007,95353.0,95352.0,0.5716498]
[1739919775963,0.209867,95345.0,95343.0,0.00015735]
[1739919776160,0.2098783,95340.0,95334.0,0.3608]
[1739919776359,0.26329658,95344.0,95336.0,0.2098842]
[1739919776551,0.26329658,95344.0,95334.0,0.3608]
[1739919777066,0.26229658,95344.0,95337.0,0.2098821]
[1739919778469,0.67618002,95347.0,95334.0,0.3608]
[1739919778766,0.67618002,95347.0,95344.0,0.2098667]
[1739919778966,0.54928344,95347.0,95344.0,0.2098667]
[1739919779162,0.0711,95346.0,95344.0,0.2098667]
[1739919780261,0.0781,95346.0,95344.0,0.2098667]
[1739919782064,0.007,95346.0,95344.0,0.2098667]
[1739919782564,0.007,95346.0,95345.0,0.0655]
[1739919782769,0.21525456,95360.0,95359.0,0.2098344]
[1739919782959,0.18848344,95361.0,95359.0,0.5706344]
[1739919783667,0.22714297,95361.0,95359.0,0.5706344]
[1739919783865,0.007,95360.0,95359.0,0.5706344]
[1739919784472,0.22714297,95361.0,95359.0,0.5706344]
[1739919784473,0.23414297,95361.0,95359.0,0.5706344]
[1739919785577,0.19548344,95361.0,95360.0,0.3608]
[1739919785779,0.19548344,95361.0,95360.0,0.4301]
[1739919786070,0.05869504,95361.0,95360.0,0.4301]
[1739919786280,0.3608,95399.0,95360.0,0.4301]
[1739919786281,0.12689658,95390.0,95363.0,0.0524561]
[1739919786482,0.12689658,95390.0,95382.0,0.2097824]
[1739919786664,0.00157304,95392.0,95390.0,0.2097648]
[1739919786976,0.219,95416.0,95405.0,0.2097323]
[1739919787168,0.2871,95416.0,95406.0,0.3608]
[1739919787576,0.28725726,95416.0,95406.0,0.3608]
[1739919789172,0.25435008,95407.0,95406.0,0.3608]
[1739919789970,0.25435008,95407.0,95406.0,0.3618]
[1739919790177,0.004,95407.0,95406.0,0.3618]
[1739919791077,0.06825726,95416.0,95408.0,0.2097248]
[1739919791279,0.06825726,95416.0,95415.0,0.3608]
[1739919791868,0.10723417,95416.0,95415.0,0.3608]
[1739919793275,0.11023417,95416.0,95415.0,0.3618]
[1739919796574,0.10723417,95416.0,95415.0,0.5715112]
[1739919796779,0.11123417,95416.0,95415.0,0.5798912]
[1739919797376,0.11123417,95416.0,95415.0,0.37018]
[1739919797778,0.11023417,95416.0,95415.0,0.37018]
[1739919799381,0.00315726,95416.0,95415.0,0.37018]
[1739919799579,0.00415726,95416.0,95415.0,0.37018]
[1739919801972,0.066,95424.0,95423.0,0.2096936]
[1739919802172,0.066,95424.0,95423.0,0.5704936]
[1739919802873,0.09968913,95424.0,95423.0,0.5704936]
[1739919803271,0.10368913,95424.0,95423.0,0.5714936]
[1739919804371,0.069,95424.0,95423.0,0.5714936]
[1739919804578,0.003,95424.0,95423.0,0.5714936]
[1739919806087,0.03254702,95430.0,95429.0,0.2096804]
[1739919806278,0.0674,95432.0,95425.0,0.3608]
[1739919806474,0.0674,95432.0,95431.0,0.2096761]
[1739919807181,0.00015726,95433.0,95431.0,0.2096761]
[1739919807880,0.00015726,95433.0,95431.0,0.001]
[1739919808076,0.20983006,95433.0,95431.0,0.001]
[1739919808277,0.20983006,95433.0,95431.0,0.2106756]
[1739919808573,0.00015726,95433.0,95431.0,0.2106756]
[1739919808974,0.2096739,95432.0,95431.0,0.001]
[1739919809174,0.209687,95426.0,95425.0,0.3608]
[1739919809375,0.208687,95426.0,95425.0,0.3608]
[1739919809873,0.2096741,95432.0,95425.0,0.3608]
[1739919810182,0.00015726,95433.0,95431.0,0.5714745]
[1739919810696,0.00015726,95433.0,95431.0,0.5704745]
[1739919811381,0.33650968,95460.0,95431.0,0.3608]
[1739919811589,0.2096178,95458.0,95446.0,0.2096412]
[1739919811784,0.2096204,95457.0,95454.0,0.3608]
[1739919811982,0.1396,95459.0,95454.0,0.3608]
[1739919812183,0.2096223,95456.0,95454.0,0.3608]
[1739919812987,0.24247654,95456.0,95455.0,0.00838]
[1739919813691,0.24547654,95456.0,95455.0,0.00838]
[1739919814086,0.2096431,95446.0,95445.0,0.00015716]
[1739919814383,0.2096431,95446.0,95436.0,0.3608]
[1739919814591,0.12689658,95446.0,95436.0,0.3608]
[1739919814996,0.2096629,95437.0,95436.0,0.3608]
[1739919815188,0.12689658,95446.0,95419.0,0.3608]
[1739919815189,0.3608,95439.0,95419.0,0.3608]
[1739919815495,0.3608,95428.0,95422.0,0.2096948]
[1739919815690,0.3598,95428.0,95422.0,0.2096948]
[1739919816990,0.3638,95428.0,95422.0,0.2106948]
[1739919817181,0.3638,95428.0,95422.0,0.001]
[1739919817388,0.109,95427.0,95426.0,0.209687]
[1739919817589,0.3638,95428.0,95426.0,0.209687]
[1739919818994,0.005,95427.0,95426.0,0.001]
[1739919819402,0.36095716,95439.0,95438.0,0.2096607]
[1739919821402,0.36095716,95439.0,95426.0,0.001]
[1739919821598,0.3598,95430.0,95420.0,0.0006]
[1739919821798,0.2096956,95423.0,95411.0,0.4268]
[1739919822005,0.2479,95429.0,95427.0,0.2096827]
[1739919822006,0.1389,95429.0,95427.0,0.2096827]
[1739919822197,0.07,95438.0,95432.0,0.2096736]
[1739919822198,0.0712,95437.0,95432.0,0.2096736]
[1739919822399,0.19809658,95437.0,95434.0,0.2096676]
[1739919822591,0.0712,95437.0,95434.0,0.2096676]
[1739919822796,0.0702,95437.0,95434.0,0.2096676]
[1739919823095,0.00515716,95439.0,95427.0,0.3608]
[1739919823297,0.00015716,95439.0,95437.0,0.2096629]
[1739919824897,0.2096683,95435.0,95429.0,0.2096802]
[1739919825098,0.2096683,95435.0,95434.0,0.001]
[1739919825294,0.006,95437.0,95435.0,0.2096659]
[1739919825494,0.00015716,95439.0,95438.0,0.2096607]
[1739919825799,0.00615716,95439.0,95438.0,0.2096607]
[1739919826102,0.00015716,95439.0,95438.0,0.2096607]
[1739919826898,0.00015716,95439.0,95436.0,0.3608]
[1739919827095,0.2096613,95438.0,95436.0,0.3608]
[1739919827401,0.0715,95437.0,95436.0,0.3608]
[1739919828507,0.0705,95437.0,95436.0,0.3608]
[1739919828903,0.0705,95437.0,95436.0,0.5704651]
[1739919829208,0.0765,95437.0,95436.0,0.5714651]
[1739919830511,0.006,95437.0,95436.0,0.5714651]
[1739919837315,0.006,95437.0,95436.0,0.001]
[1739919841305,0.006,95437.0,95436.0,0.07]
[1739919841509,0.006,95437.0,95436.0,0.2085]
[1739919841712,0.006,95437.0,95436.0,0.1371]
[1739919843020,0.006,95437.0,95436.0,0.001]
[1739919843211,0.2348159,95437.0,95426.0,0.3608]
[1739919843411,0.3608,95427.0,95419.0,0.00015716]
[1739919843611,0.2096987,95421.0,95419.0,0.00015716]
[1739919843812,0.0662,95420.0,95419.0,0.00015716]
[1739919845219,0.0652,95420.0,95419.0,0.00015716]
[1739919845425,0.09822224,95420.0,95419.0,0.00015716]
[1739919845721,0.48769658,95440.0,95419.0,0.00015716]
[1739919845922,0.12689658,95430.0,95419.0,0.00115716]
[1739919846125,0.3608,95428.0,95420.0,0.066]
[1739919846320,0.11056,95427.0,95420.0,0.066]
[1739919846516,0.2096903,95425.0,95420.0,0.066]
[1739919846712,0.0711,95424.0,95422.0,0.2096951]
[1739919848226,0.2807928,95424.0,95420.0,0.066]
[1739919848426,0.2807928,95424.0,95421.0,0.2096971]
[1739919849011,0.0781,95424.0,95422.0,0.2106949]
[1739919849316,0.007,95424.0,95422.0,0.2106949]
[1739919849620,0.007,95424.0,95423.0,0.0697]
[1739919850023,0.007,95424.0,95423.0,0.2793936]
[1739919851123,0.18769556,95433.0,95423.0,0.0697]
[1739919851318,0.18689555,95433.0,95432.0,0.3608]
[1739919851817,0.18689555,95433.0,95432.0,0.4272]
[1739919852230,0.18689555,95436.0,95432.0,0.4272]
[1739919852525,0.007,95433.0,95432.0,0.6378739]
[1739919854533,0.007,95433.0,95432.0,0.001]
[1739919854725,0.11808,95433.0,95432.0,0.001]
[1739919856927,0.007,95433.0,95432.0,0.3618]
[1739919857126,0.02947722,95439.0,95432.0,0.3618]
[1739919857434,0.2096715,95434.0,95432.0,0.3618]
[1739919857620,0.207,95433.0,95432.0,0.3618]
[1739919857827,0.1353,95433.0,95432.0,0.3618]
[1739919858128,0.00015716,95439.0,95438.0,0.2096607]
[1739919859229,0.00015716,95439.0,95438.0,0.2106607]
[1739919859724,0.00015716,95439.0,95438.0,0.2096607]
[1739919859927,0.00015716,95439.0,95438.0,0.2106607]
[1739919862431,0.00015716,95439.0,95438.0,0.2096607]
[1739919862634,0.00015716,95439.0,95438.0,0.2106607]
[1739919864329,0.00015716,95439.0,95438.0,0.5714607]
[1739919865035,6e-08,95439.0,95438.0,0.5714607]
[1739919868442,6e-08,95439.0,95438.0,0.8714607]
[1739919868622,0.21810202,95469.0,95438.0,0.5813]
[1739919868825,0.21810202,95469.0,95468.0,0.2095948]
[1739919869039,0.21810202,95469.0,95463.0,0.3608]
[1739919869538,0.12689658,95480.0,95463.0,0.3608]
[1739919869934,0.12689658,95473.0,95463.0,0.3608]
[1739919870335,0.2096002,95466.0,95463.0,0.3608]
[1739919870642,0.0711,95465.0,95463.0,0.570405]
[1739919871928,0.12689658,95473.0,95463.0,0.570405]
[1739919871929,0.12689658,95473.0,95463.0,0.3618]
[1739919872136,0.12689658,95473.0,95472.0,0.209586]
[1739919872438,0.0711,95474.0,95472.0,0.209586]
[1739919873531,0.0711,95474.0,95472.0,0.210586]
[1739919874036,0.2806828,95474.0,95472.0,0.001]
[1739919876647,0.0711,95474.0,95472.0,0.2105852]
[1739919877543,0.0694,95479.0,95478.0,0.2095728]
[1739919877936,0.0695,95482.0,95480.0,0.2095684]
[1739919879244,0.0695,95482.0,95480.0,0.2105684]
[1739919883533,0.0695,95482.0,95480.0,0.001]
[1739919883744,0.2095816,95474.0,95473.0,0.3608]
[1739919884833,0.2095816,95474.0,95473.0,0.3618]
[1739919886338,0.0685,95480.0,95473.0,0.3618]
[1739919886546,0.0695,95482.0,95479.0,0.2095695]
[1739919887935,0.002,95480.0,95479.0,0.2095695]
[1739919888433,0.002,95480.0,95473.0,0.3618]
[1739919888642,0.2095804,95475.0,95473.0,0.3608]
[1739919888844,0.0607,95474.0,95473.0,0.3608]
[1739919889450,0.0597,95474.0,95473.0,0.3608]
[1739919890741,0.0575,95479.0,95473.0,0.3608]
[1739919890937,0.003,95474.0,95473.0,0.5713827]
[1739919894546,0.00015655,95481.0,95473.0,0.3608]
[1739919894746,0.00015655,95481.0,95477.0,0.2095734]
[1739919895146,0.00015655,95481.0,95478.0,0.0614]
[1739919896754,0.00015655,95481.0,95479.0,0.2095694]
[1739919897051,0.2095816,95474.0,95473.0,0.3618]
[1739919897752,0.2095816,95474.0,95473.0,0.3608]
[1739919897753,0.2085816,95474.0,95473.0,0.3608]
[1739919898344,0.2095686,95480.0,95473.0,0.3608]
[1739919898549,0.003,95474.0,95473.0,0.5713838]
[1739919899453,0.00015655,95481.0,95479.0,0.2095705]
[1739919899752,0.003,95480.0,95479.0,0.2095705]
[1739919901056,0.00015655,95481.0,95479.0,0.2095705]
[1739919901551,0.00015655,95481.0,95480.0,0.0612]
[1739919902055,0.00015655,95481.0,95479.0,0.2105705]
[1739919902349,0.00515655,95481.0,95479.0,0.2105705]
[1739919903149,0.00515655,95481.0,95479.0,0.001]
[1739919903354,0.057,95480.0,95479.0,0.001]
[1739919903944,0.056,95480.0,95478.0,0.2095719]
[1739919904158,0.00415655,95481.0,95479.0,0.20957]
[1739919904657,0.00015655,95481.0,95480.0,0.0607]
[1739919904955,0.00015655,95481.0,95479.0,0.21057]
[1739919905255,0.00015655,95481.0,95479.0,0.20957]
[1739919905256,0.004,95480.0,95479.0,0.20957]
[1739919905648,0.00015655,95481.0,95479.0,0.20957]
[1739919905947,0.00415655,95481.0,95480.0,0.001]
[1739919907045,0.06555655,95481.0,95480.0,0.001]
[1739919907244,0.005,95480.0,95479.0,0.001]
[1739919907845,0.06155655,95481.0,95478.0,0.2095724]
[1739919908054,0.06755655,95481.0,95480.0,0.001]
[1739919908551,0.006,95480.0,95479.0,0.001]
[1739919910055,0.006,95480.0,95473.0,0.3608]
[1739919910056,0.00515655,95481.0,95480.0,0.001]
[1739919910655,0.005,95480.0,95479.0,0.001]
[1739919910850,0.11568,95480.0,95479.0,0.001]
[1739919911157,0.11568,95480.0,95479.0,0.0605]
[1739919911354,0.005,95480.0,95479.0,0.0605]
[1739919911561,0.21472325,95481.0,95480.0,0.001]
[1739919912147,0.005,95480.0,95479.0,0.0605]
[1739919912547,0.005,95480.0,95479.0,0.1168]
[1739919913751,0.00515655,95481.0,95480.0,0.001]
[1739919914347,0.005,95480.0,95479.0,0.3263695]
[1739919914856,0.00015655,95481.0,95480.0,0.001]
[1739919915051,0.00515655,95481.0,95480.0,0.001]
[1739919916758,0.005,95480.0,95479.0,0.1168]
[1739919916963,0.2145684,95480.0,95479.0,0.1168]
[1739919917264,0.2085797,95475.0,95474.0,0.2095816]
[1739919917564,0.2085797,95475.0,95474.0,0.2661816]
[1739919918066,0.058,95479.0,95478.0,0.2095728]
[1739919918256,0.057,95479.0,95478.0,0.2095728]
[1739919918454,0.005,95480.0,95478.0,0.2095728]
[1739919918666,0.2145692,95480.0,95478.0,0.2095728]
[1739919919051,0.005,95480.0,95479.0,0.2095706]
[1739919919663,0.2145684,95480.0,95479.0,0.2095706]
[1739919919960,0.2095684,95480.0,95479.0,0.2095706]
[1739919920558,0.2095684,95480.0,95479.0,0.2105706]
[1739919920767,0.2165684,95480.0,95479.0,0.2105706]
[1739919926557,0.007,95480.0,95479.0,0.2105706]
[1739919926760,0.00015655,95481.0,95480.0,0.2095684]
[1739919928057,0.00615655,95481.0,95480.0,0.2105684]
[1739919928656,0.00615655,95481.0,95480.0,0.001]
[1739919928862,0.21572285,95481.0,95480.0,0.001]
[1739919929260,0.57652285,95481.0,95480.0,0.001]
[1739919929570,0.2085889,95471.0,95469.0,0.2095925]
[1739919929759,0.1216,95470.0,95469.0,0.2095925]
[1739919929962,0.1842,95470.0,95469.0,0.2095925]
[1739919932666,0.1902,95470.0,95469.0,0.2105925]
[1739919933374,0.3997904,95470.0,95469.0,0.2105925]
[1739919942278,0.39984041,95470.0,95469.0,0.2105925]
[1739919947881,0.33744041,95470.0,95469.0,0.2105925]
[1739919951290,0.33744041,95470.0,95469.0,0.001]
[1739919951692,0.2096058,95463.0,95457.0,0.18895241]
[1739919952193,0.48945002,95470.0,95457.0,0.18895241]
[1739919952387,0.48865001,95470.0,95457.0,0.18895241]
[1739919952595,0.2096058,95463.0,95457.0,0.18895241]
[1739919952793,0.2096058,95463.0,95457.0,0.00157121]
[1739919953896,0.2156058,95463.0,95462.0,0.00115716]
[1739919955695,0.2096321,95451.0,95450.0,0.18580999]
[1739919955887,0.2096453,95445.0,95444.0,0.2498245]
[1739919956090,0.2096453,95445.0,95444.0,0.22149799]
[1739919956596,0.2096453,95445.0,95444.0,0.18740682]
[1739919957497,0.2166453,95445.0,95444.0,0.18740682]
[1739919958490,0.24100387,95445.0,95444.0,0.18740682]
[1739919960302,0.03135857,95445.0,95435.0,0.00015716]
[1739919960506,0.2096651,95436.0,95435.0,0.00015716]
[1739919963092,0.2166651,95436.0,95435.0,0.00015716]
[1739919963396,0.007,95436.0,95435.0,0.00015716]
[1739919963701,0.007,95436.0,95435.0,0.05825716]
[1739919964201,0.007,95436.0,95435.0,0.00015716]
[1739919964502,0.0635,95436.0,95435.0,0.00015716]
[1739919968800,0.007,95436.0,95435.0,0.00015716]
[1739919972009,0.0606,95436.0,95435.0,0.00015716]
[1739919972204,0.0606,95436.0,95435.0,1e-08]
[1739919977312,0.2796,95436.0,95408.0,0.3608]
[1739919977502,0.2097156,95413.0,95409.0,0.0581]
[1739919977707,0.0533,95412.0,95398.0,0.1131]
[1739919978015,0.1108,95412.0,95398.0,0.1712]
[1739919978309,0.2097391,95403.0,95398.0,0.1712]
[1739919979210,0.2097391,95403.0,95398.0,0.3809479]
[1739919979913,0.2097402,95402.0,95398.0,0.3809479]
[1739919980302,0.2097449,95400.0,95398.0,0.1712]
[1739919981510,0.2167449,95400.0,95398.0,0.1712]
[1739919982805,0.007,95400.0,95378.0,0.21136374]
[1739919983005,0.12659641,95388.0,95379.0,0.1628]
[1739919983205,0.12659641,95388.0,95385.0,0.2097765]